fUSD/lending_fUSD_20241123
["ID","MTS","AMOUNT","RATE_DAILY","PERIOD"]
[343134528,1732377044596,-292.0,0.00054795,90]
[343134529,1732377044606,-292.0,0.00054795,90]
[343134530,1732377044616,-292.0,0.00054795,90]
[343134531,1732377044625,-292.0,0.00054795,90]
[343134532,1732377044636,-292.0,0.00054795,90]
[343134533,1732377044646,-292.0,0.00054795,90]
[343134534,1732377044655,-292.0,0.00054795,90]
[343134535,1732377044667,-292.0,0.00054795,90]
[343134536,1732377044677,-292.0,0.00054795,90]
[343134537,1732377044686,-153.0,0.00054795,90]
[343134538,1732377044697,-153.0,0.00054795,90]
[343134539,1732377044706,-153.0,0.00054795,90]
[343134540,1732377044716,-153.0,0.00054795,90]
[343134541,1732377044729,-153.0,0.00054795,90]
[343134542,1732377044739,-292.0,0.00054795,90]
[343134543,1732377044749,-292.0,0.00054795,90]
[343134544,1732377044758,-292.0,0.00054795,90]
[343134545,1732377044768,-292.0,0.00054795,90]
[343134546,1732377044778,-292.0,0.00054795,90]
[343134547,1732377044787,-292.0,0.00054795,90]
[343134548,1732377044797,-292.0,0.00054795,90]
[343134549,1732377044806,-292.0,0.00054795,90]
[343134550,1732377044815,-292.0,0.00054795,90]
[343134551,1732377044826,-292.0,0.00054795,90]
[343134552,1732377044835,-292.0,0.00054795,90]
[343134553,1732377044845,-292.0,0.00054795,90]
[343134554,1732377044856,-292.0,0.00054795,90]
[343134555,1732377044865,-292.0,0.00054795,90]
[343134556,1732377044875,-150.0,0.00054821,120]
[343134557,1732377044884,-1520.73,0.00054844,2]
[343134558,1732377044894,-150.0,0.00054848,120]
[343134559,1732377044904,-566.62808031,0.00054851,26]
[343134560,1732377044914,-150.0,0.00054875,120]
[343134561,1732377044924,-3900.0,0.000549,20]
[343134562,1732377044933,-150.0,0.00054902,120]
[343134563,1732377044943,-150.0,0.00054928,120]
[343134564,1732377044952,-167.65,0.00054941,2]
[343134565,1732377044962,-150.0,0.00054955,120]
[343134566,1732377044971,-150.0,0.00054982,120]
[343134567,1732377044984,-850.0,0.00055,2]
[343134568,1732377044994,-2000.0,0.00055,120]
[343134569,1732377045004,-150.0,0.00055009,120]
[343134570,1732377045013,-551.004,0.0005503,120]
[343134571,1732377045023,-591.89,0.00055034,120]
[343134572,1732377045034,-591.89,0.00055034,120]
[343134573,1732377045044,-150.0,0.00055035,120]
[343134574,1732377045055,-150.5,0.00055055,120]
[343134575,1732377045066,-150.0,0.00055062,120]
[343134576,1732377045076,-1747.05313457,0.0005508,15]
[343134577,1732377045086,-6906.32966229,0.00055083,15]
[343134578,1732377045095,-150.0,0.00055089,120]
[343134579,1732377045104,-150.0,0.00055116,120]
[343134580,1732377045114,-150.0,0.00055141,14]
[343134581,1732377045123,-150.0,0.00055143,120]
[343134582,1732377045136,-150.0,0.00055169,120]
[343134583,1732377045146,-150.0,0.00055196,120]
[343134584,1732377045155,-5200.0,0.000552,20]
[343134585,1732377045164,-150.0,0.00055218,14]
[343134586,1732377045174,-150.0,0.00055223,120]
[343134587,1732377045183,-167.34,0.00055223,2]
[343134588,1732377045193,-312.11168742,0.00055227,2]
[343134589,1732377045202,-150.0,0.0005525,120]
[343134590,1732377045212,-150.0,0.00055276,120]
[343134591,1732377045221,-6600.0,0.000553,20]
[343134592,1732377045233,-150.0,0.00055303,120]
[343134593,1732377045243,-591.89,0.00055307,120]
[343134594,1732377045252,-591.89,0.00055307,120]
[343134595,1732377045262,-150.0,0.00055323,14]
[343134596,1732377045271,-150.0,0.0005533,120]
[343134597,1732377045281,-520.29,0.00055341,120]
[343134598,1732377045290,-500.0,0.00055341,120]
[343134599,1732377045300,-500.0,0.00055341,120]
[343134600,1732377045310,-500.0,0.00055341,120]
[343134601,1732377045319,-500.0,0.00055341,120]
[343134602,1732377045329,-500.0,0.00055341,120]
[343134603,1732377045338,-292.36744489,0.00055341,120]
[343134604,1732377045348,-188.13052937,0.00055341,120]
[343134605,1732377045358,-500.0,0.00055341,120]
[343134606,1732377045367,-500.0,0.00055341,120]
[343134607,1732377045377,-500.0,0.00055341,120]
[343134608,1732377045386,-837.83,0.00055341,120]
[343134609,1732377045396,-500.0,0.00055341,120]
[343134610,1732377045406,-824.88,0.00055341,120]
[343134611,1732377045415,-585.26,0.00055341,120]
[343134612,1732377045425,-585.26,0.00055341,120]
[343134613,1732377045434,-500.0,0.00055341,120]
[343134614,1732377045444,-527.41452292,0.00055341,120]
[343134615,1732377045454,-500.0,0.00055341,120]
[343134616,1732377045464,-500.0,0.00055341,120]
[343134617,1732377045477,-500.0,0.00055341,120]
[343134618,1732377045487,-500.0,0.00055341,120]
[343134619,1732377045496,-500.0,0.00055341,120]
[343134620,1732377045505,-500.0,0.00055341,120]
[343134621,1732377045516,-500.0,0.00055341,120]
[343134622,1732377045526,-500.0,0.00055341,120]
[343134623,1732377045536,-500.0,0.00055341,120]
[343134624,1732377045547,-500.0,0.00055341,120]
[343134625,1732377045557,-500.0,0.00055341,120]
[343134628,1732377045567,-500.0,0.00055341,120]
[343134629,1732377045577,-500.0,0.00055341,120]
[343134632,1732377045587,-500.0,0.00055341,120]
[343134634,1732377045596,-500.0,0.00055341,120]
[343134636,1732377045606,-500.0,0.00055341,120]
[343134640,1732377045617,-500.0,0.00055341,120]
[343134642,1732377045627,-500.0,0.00055341,120]
[343134644,1732377045637,-500.0,0.00055341,120]
[343134645,1732377045647,-351.09915742,0.00055341,120]
[343134646,1732377045657,-500.0,0.00055341,120]
[343134647,1732377045667,-1524.05,0.00055341,54]
[343134648,1732377045676,-500.0,0.00055341,120]
[343134649,1732377045686,-392.65,0.00055341,120]
[343134650,1732377045696,-500.0,0.00055341,7]
[343134651,1732377045706,-500.0,0.00055341,120]
[343134652,1732377045716,-162.86,0.00055341,120]
[343134655,1732377045728,-500.0,0.00055341,120]
[343134656,1732377045737,-500.0,0.00055341,120]
[343134657,1732377045747,-500.0,0.00055341,120]
[343134659,1732377045757,-500.0,0.00055341,7]
[343134660,1732377045767,-1001.64,0.00055341,120]
[343134661,1732377045777,-500.0,0.00055341,120]
[343134662,1732377045787,-711.05,0.00055341,120]
[343134663,1732377045797,-500.0,0.00055341,120]
[343134664,1732377045807,-500.0,0.00055341,120]
[343134665,1732377045817,-500.0,0.00055341,120]
[343134666,1732377045830,-500.0,0.00055341,120]
[343134667,1732377045840,-628.27,0.00055341,120]
[343134668,1732377045849,-500.0,0.00055341,120]
[343134669,1732377045858,-500.0,0.00055341,120]
[343134670,1732377045867,-575.23855224,0.00055341,120]
[343134671,1732377045876,-618.53,0.00055341,120]
[343134672,1732377045885,-310.69347434,0.00055341,120]
[343134673,1732377045895,-1295.74,0.00055341,120]
[343134674,1732377045904,-500.0,0.00055341,120]
[343134675,1732377045913,-500.0,0.00055341,120]
[343134676,1732377045923,-1517.3,0.00055341,120]
[343134677,1732377045932,-500.0,0.00055341,120]
[343134678,1732377045942,-650.15,0.00055341,120]
[343134679,1732377045951,-500.0,0.00055341,120]
[343134680,1732377045961,-500.0,0.00055341,120]
[343134681,1732377045970,-1391.84,0.00055341,120]
[343134682,1732377045980,-2074.23,0.00055341,120]
[343134683,1732377045990,-1632.04,0.00055341,120]
[343134684,1732377045999,-500.0,0.00055341,120]
[343134685,1732377046008,-500.0,0.00055341,120]
[343134686,1732377046017,-500.0,0.00055341,120]
[343134687,1732377046027,-568.90072044,0.00055341,120]
[343134688,1732377046039,-500.0,0.00055341,120]
[343134689,1732377046049,-500.0,0.00055341,120]
[343134690,1732377046058,-597.4,0.00055341,120]
[343134691,1732377046067,-1478.23,0.00055341,120]
[343134692,1732377046077,-500.0,0.00055341,120]
[343134693,1732377046087,-500.0,0.00055341,120]
[343134694,1732377046096,-500.0,0.00055341,120]
[343134695,1732377046106,-500.0,0.00055341,120]
[343134696,1732377046116,-1562.08,0.00055341,120]
[343134697,1732377046125,-500.0,0.00055341,120]
[343134698,1732377046135,-543.80364792,0.00055341,120]
[343134699,1732377046144,-329.40717666,0.00055341,120]
[343134700,1732377046154,-500.0,0.00055341,120]
[343134701,1732377046163,-500.0,0.00055341,120]
[343134702,1732377046173,-500.0,0.00055341,120]
[343134703,1732377046182,-582.21,0.00055341,120]
[343134704,1732377046191,-500.0,0.00055341,120]
[343134705,1732377046200,-508.59805814,0.00055341,120]
[343134706,1732377046210,-325.854077,0.00055341,120]
[343134707,1732377046219,-500.0,0.00055341,120]
[343134708,1732377046230,-500.0,0.00055341,120]
[343134711,1732377046240,-1590.61,0.00055341,120]
[343134714,1732377046249,-509.35,0.00055341,120]
[343134717,1732377046260,-500.0,0.00055341,120]
[343134720,1732377046270,-1471.15,0.00055341,120]
[343134723,1732377046279,-500.0,0.00055341,120]
[343134725,1732377046288,-1114.52,0.00055341,120]
[343134727,1732377046298,-1731.95,0.00055341,30]
[343134729,1732377046308,-500.0,0.00055341,120]
[343134731,1732377046318,-500.0,0.00055341,120]
[343134733,1732377046327,-500.0,0.00055341,120]
[343134735,1732377046336,-500.0,0.00055341,120]
[343134736,1732377046346,-500.0,0.00055341,120]
[343134737,1732377046356,-500.0,0.00055341,120]
[343134738,1732377046365,-500.0,0.00055341,120]
[343134739,1732377046375,-520.83,0.00055341,120]
[343134740,1732377046384,-500.0,0.00055341,120]
[343134741,1732377046394,-500.0,0.00055341,120]
[343134742,1732377046403,-505.48756263,0.00055341,120]
[343134743,1732377046413,-500.0,0.00055341,120]
[343134744,1732377046422,-500.0,0.00055341,120]
[343134745,1732377046433,-500.0,0.00055341,120]
[343134746,1732377046442,-503.27840032,0.00055341,120]
[343134747,1732377046452,-500.0,0.00055341,120]
[343134748,1732377046462,-500.0,0.00055341,120]
[343134749,1732377046471,-500.0,0.00055341,120]
[343134750,1732377046483,-500.0,0.00055341,120]
[343134751,1732377046493,-500.0,0.00055341,120]
[343134752,1732377046503,-1744.78,0.00055341,120]
[343134753,1732377046514,-636.24,0.00055341,120]
[343134754,1732377046523,-500.0,0.00055341,120]
[343134755,1732377046533,-1588.17,0.00055341,120]
[343134756,1732377046543,-500.0,0.00055341,120]
[343134757,1732377046552,-500.0,0.00055341,120]
[343134758,1732377046562,-500.0,0.00055341,120]
[343134759,1732377046572,-1601.12,0.00055341,120]
[343134760,1732377046581,-500.0,0.00055341,120]
[343134761,1732377046590,-500.0,0.00055341,120]
[343134762,1732377046600,-500.0,0.00055342,120]
[343134763,1732377046610,-500.0,0.00055342,120]
[343134764,1732377046620,-500.0,0.00055342,120]
[343134765,1732377046630,-500.0,0.00055342,120]
[343134766,1732377046640,-500.0,0.00055342,120]
[343134767,1732377046650,-559.66,0.00055342,120]
[343134768,1732377046660,-528.69,0.00055342,120]
[343134769,1732377046670,-500.0,0.00055342,120]
[343134770,1732377046679,-500.0,0.00055342,120]
[343134771,1732377046689,-348.93500035,0.00055342,120]
[343134772,1732377046698,-500.0,0.00055342,120]
[343134773,1732377046708,-500.0,0.00055342,120]
[343134774,1732377046719,-500.0,0.00055342,120]
[343134775,1732377046730,-500.0,0.00055342,120]
[343134776,1732377046741,-500.0,0.00055342,120]
[343134777,1732377046751,-533.88,0.00055342,120]
[343134778,1732377046761,-500.0,0.00055342,120]
[343134779,1732377046771,-500.0,0.00055342,120]
[343134780,1732377046780,-500.0,0.00055342,120]
[343134781,1732377046790,-500.0,0.00055342,120]
[343134782,1732377046799,-500.0,0.00055342,120]
[343134783,1732377046808,-500.0,0.00055342,120]
[343134784,1732377046818,-500.0,0.00055342,120]
[343134785,1732377046827,-881.31,0.00055342,120]
[343134786,1732377046836,-596.11,0.00055342,120]
[343134787,1732377046846,-500.0,0.00055342,120]
[343134788,1732377046855,-500.0,0.00055342,120]
[343134789,1732377046865,-1422.09,0.00055342,120]
[343134790,1732377046875,-1420.56,0.00055342,120]
[343134791,1732377046885,-500.0,0.00055342,120]
[343134792,1732377046894,-500.0,0.00055342,120]
[343134793,1732377046904,-500.0,0.00055342,120]
[343134794,1732377046913,-598.83,0.00055342,120]
[343134795,1732377046923,-500.0,0.00055342,120]
[343134796,1732377046932,-500.0,0.00055342,120]
[343134797,1732377046942,-1141.5,0.00055342,120]
[343134798,1732377046952,-500.0,0.00055342,120]
[343134799,1732377046961,-500.0,0.00055342,120]
[343134800,1732377046971,-1381.04,0.00055342,120]
[343134801,1732377046981,-1685.92,0.00055342,120]
[343134802,1732377046991,-500.0,0.00055342,120]
[343134803,1732377047000,-2122.09,0.00055342,120]
[343134804,1732377047010,-500.0,0.00055342,120]
[343134805,1732377047019,-500.0,0.00055342,120]
[343134806,1732377047031,-500.0,0.00055342,120]
[343134807,1732377047040,-895.95,0.00055342,120]
[343134808,1732377047049,-154.44588416,0.00055342,120]
[343134809,1732377047059,-1052.74,0.00055342,120]
[343134810,1732377047068,-500.0,0.00055342,120]
[343134811,1732377047078,-2944.91,0.00055342,120]
[343134812,1732377047087,-500.0,0.00055342,120]
[343134813,1732377047096,-172.7,0.00055342,120]
[343134814,1732377047105,-194.73048249,0.00055342,120]
[343134815,1732377047115,-404.03926933,0.00055342,120]
[343134816,1732377047126,-500.0,0.00055342,120]
[343134817,1732377047136,-500.0,0.00055342,120]
[343134818,1732377047145,-500.0,0.00055342,2]
[343134819,1732377047155,-500.0,0.00055342,120]
[343134820,1732377047164,-500.0,0.00055342,120]
[343134821,1732377047174,-265.10992518,0.00055342,120]
[343134822,1732377047184,-821.09,0.00055342,120]
[343134823,1732377047193,-500.0,0.00055342,120]
[343134824,1732377047203,-466.3834799,0.00055342,120]
[343134825,1732377047213,-541.73,0.00055342,120]
[343134826,1732377047350,-1028.41,0.00055342,120]
[343134827,1732377047360,-502.85438161,0.00055342,120]
[343134828,1732377047370,-500.0,0.00055342,120]
[343134829,1732377047379,-500.0,0.00055342,120]
[343134830,1732377047388,-500.0,0.00055342,120]
[343134831,1732377047398,-698.57,0.00055342,120]
[343134832,1732377047407,-1223.02,0.00055342,120]
[343134833,1732377047416,-500.0,0.00055342,120]
[343134834,1732377047426,-500.0,0.00055342,120]
[343134835,1732377047436,-500.0,0.00055342,120]
[343134836,1732377047446,-500.0,0.00055342,120]
[343134837,1732377047455,-500.0,0.00055342,120]
[343134838,1732377047465,-500.0,0.00055342,120]
[343134839,1732377047475,-1898.69,0.00055342,120]
[343134840,1732377047487,-184.23080455,0.00055342,120]
[343134841,1732377047496,-500.0,0.00055342,120]
[343134842,1732377047506,-163.4843784,0.00055342,120]
[343134843,1732377047516,-500.0,0.00055342,120]
[343134844,1732377047526,-500.0,0.00055342,120]
[343134845,1732377047536,-500.0,0.00055342,120]
[343134846,1732377047546,-500.0,0.00055342,120]
[343134847,1732377047555,-500.0,0.00055342,120]
[343134848,1732377047565,-500.0,0.00055342,120]
[343134849,1732377047574,-500.0,0.00055342,120]
[343134850,1732377047584,-500.0,0.00055342,120]
[343134851,1732377047593,-1000.0,0.00055342,120]
[343134852,1732377047603,-731.95,0.00055342,21]
[343134853,1732377047612,-500.0,0.00055342,120]
[343134854,1732377047622,-1847.28,0.00055342,120]
[343134855,1732377047632,-480.16,0.00055342,120]
[343134856,1732377047642,-1000.0,0.00055342,120]
[343134857,1732377047652,-500.0,0.00055342,120]
[343134858,1732377047666,-516.9,0.00055342,120]
[343134859,1732377047675,-500.0,0.00055342,120]
[343134860,1732377047685,-328.05153929,0.00055342,120]
[343134861,1732377047696,-232.38411009,0.00055342,120]
[343134862,1732377047706,-151.50537375,0.00055342,120]
[343134863,1732377047716,-703.76,0.00055342,120]
[343134864,1732377047731,-591.85,0.00055342,120]
[343134865,1732377047741,-1180.28,0.00055342,120]
[343134866,1732377047751,-500.0,0.00055342,120]
[343134867,1732377047761,-2028.13,0.00055342,120]
[343134868,1732377047771,-507.4754374,0.00055342,120]
[343134869,1732377047780,-500.0,0.00055342,120]
[343134870,1732377047789,-500.0,0.00055342,120]
[343134871,1732377047799,-500.0,0.00055342,120]
[343134872,1732377047808,-500.0,0.00055342,120]
[343134873,1732377047817,-500.0,0.00055342,120]
[343134874,1732377047827,-500.0,0.00055342,120]
[343134875,1732377047836,-500.0,0.00055342,120]
[343134876,1732377047845,-500.0,0.00055342,120]
[343134877,1732377047855,-500.0,0.00055342,120]
[343134878,1732377047864,-500.0,0.00055342,120]
[343134879,1732377047873,-500.0,0.00055342,120]
[343134880,1732377047883,-500.0,0.00055342,120]
[343134881,1732377047892,-500.0,0.00055342,120]
[343134882,1732377047902,-932.28,0.00055342,120]
[343134883,1732377047911,-500.0,0.00055342,120]
[343134884,1732377047921,-815.71,0.00055342,120]
[343134885,1732377047930,-500.0,0.00055342,120]
[343134886,1732377047939,-500.0,0.00055342,120]
[343134887,1732377047949,-500.0,0.00055342,120]
[343134888,1732377047958,-500.0,0.00055342,120]
[343134889,1732377047968,-500.0,0.00055342,120]
[343134890,1732377047980,-500.0,0.00055342,120]
[343134891,1732377047989,-500.0,0.00055342,120]
[343134892,1732377047999,-500.0,0.00055342,120]
[343134893,1732377048009,-500.0,0.00055342,120]
[343134894,1732377048019,-500.0,0.00055342,120]
[343134895,1732377048030,-500.0,0.00055342,120]
[343134896,1732377048042,-500.0,0.00055342,120]
[343134897,1732377048052,-500.0,0.00055342,120]
[343134898,1732377048062,-500.0,0.00055342,120]
[343134899,1732377048072,-500.0,0.00055342,120]
[343134900,1732377048083,-500.0,0.00055342,120]
[343134901,1732377048093,-500.0,0.00055342,120]
[343134902,1732377048103,-500.0,0.00055342,120]
[343134903,1732377048112,-500.0,0.00055342,120]
[343134904,1732377048122,-500.0,0.00055342,120]
[343134905,1732377048131,-506.73,0.00055342,120]
[343134906,1732377048141,-500.0,0.00055342,120]
[343134907,1732377048150,-500.0,0.00055342,120]
[343134908,1732377048159,-500.0,0.00055342,120]
[343134909,1732377048168,-500.0,0.00055342,120]
[343134910,1732377048177,-500.0,0.00055342,120]
[343134911,1732377048188,-500.0,0.00055342,120]
[343134912,1732377048197,-500.0,0.00055342,120]
[343134913,1732377048207,-500.0,0.00055342,120]
[343134914,1732377048218,-1811.53,0.00055342,120]
[343134915,1732377048229,-500.0,0.00055342,120]
[343134916,1732377048240,-500.0,0.00055342,120]
[343134917,1732377048250,-500.0,0.00055342,120]
[343134918,1732377048260,-500.0,0.00055342,120]
[343134919,1732377048271,-500.0,0.00055342,120]
[343134920,1732377048282,-500.0,0.00055342,120]
[343134921,1732377048292,-500.0,0.00055342,120]
[343134922,1732377048302,-500.0,0.00055342,120]
[343134923,1732377048312,-1739.04,0.00055342,120]
[343134924,1732377048322,-500.0,0.00055342,120]
[343134925,1732377048332,-500.0,0.00055342,120]
[343134926,1732377048341,-650.97,0.00055342,120]
[343134927,1732377048351,-500.0,0.00055342,120]
[343134928,1732377048360,-300.23004841,0.00055342,120]
[343134929,1732377048370,-1427.96,0.00055342,120]
[343134930,1732377048379,-500.0,0.00055342,120]
[343134931,1732377048389,-500.0,0.00055342,120]
[343134932,1732377048399,-500.0,0.00055342,120]
[343134933,1732377048409,-504.49150159,0.00055342,120]
[343134934,1732377048419,-500.0,0.00055342,120]
[343134935,1732377048429,-499.68611315,0.00055342,120]
[343134936,1732377048438,-500.0,0.00055342,120]
[343134937,1732377048448,-569.52,0.00055342,120]
[343134938,1732377048458,-500.0,0.00055342,120]
[343134939,1732377048468,-500.0,0.00055342,120]
[343134940,1732377048480,-500.0,0.00055342,120]
[343134941,1732377048491,-579.26896148,0.00055342,120]
[343134942,1732377048501,-612.87,0.00055342,120]
[343134943,1732377048512,-500.0,0.00055342,120]
[343134944,1732377048522,-500.0,0.00055342,120]
[343134945,1732377048532,-500.0,0.00055342,120]
[343134946,1732377048542,-500.0,0.00055342,120]
[343134947,1732377048552,-500.0,0.00055342,120]
[343134948,1732377048563,-500.0,0.00055342,120]
[343134949,1732377048572,-500.0,0.00055342,120]
[343134950,1732377048582,-500.0,0.00055342,120]
[343134951,1732377048592,-167.89838878,0.00055342,120]
[343134952,1732377048603,-500.0,0.00055342,120]
[343134953,1732377048613,-500.0,0.00055342,120]
[343134954,1732377048623,-573.15,0.00055342,120]
[343134955,1732377048633,-500.0,0.00055342,120]
[343134956,1732377048644,-500.0,0.00055342,120]
[343134957,1732377048654,-500.0,0.00055342,120]
[343134958,1732377048664,-500.0,0.00055342,120]
[343134959,1732377048674,-500.0,0.00055342,120]
[343134960,1732377048683,-500.0,0.00055342,120]
[343134961,1732377048694,-500.0,0.00055342,120]
[343134962,1732377048705,-500.0,0.00055342,120]
[343134963,1732377048715,-500.0,0.00055342,120]
[343134964,1732377048724,-500.0,0.00055342,120]
[343134965,1732377048737,-500.0,0.00055342,120]
[343134966,1732377048747,-500.0,0.00055342,120]
[343134967,1732377048758,-500.0,0.00055342,120]
[343134968,1732377048768,-500.0,0.00055342,120]
[343134969,1732377048778,-1387.28,0.00055342,120]
[343134970,1732377048788,-218.11291584,0.00055342,120]
[343134971,1732377048798,-189.74548178,0.00055342,120]
[343134972,1732377048808,-500.0,0.00055342,120]
[343134973,1732377048818,-500.0,0.00055342,120]
[343134974,1732377048828,-245.92907367,0.00055342,120]
[343134975,1732377048838,-1412.34,0.00055342,120]
[343134976,1732377048849,-500.0,0.00055342,120]
[343134977,1732377048859,-1299.9,0.00055342,120]
[343134978,1732377048869,-500.0,0.00055342,120]
[343134979,1732377048879,-517.64,0.00055342,120]
[343134980,1732377048889,-500.0,0.00055342,120]
[343134981,1732377048899,-500.0,0.00055342,120]
[343134982,1732377048910,-500.0,0.00055342,120]
[343134983,1732377048920,-500.0,0.00055342,120]
[343134984,1732377048930,-397.07316366,0.00055342,120]
[343134985,1732377048940,-500.0,0.00055342,120]
[343134986,1732377048950,-520.22,0.00055342,120]
[343134987,1732377048960,-2284.99,0.00055342,120]
[343134988,1732377048970,-4588.54,0.00055342,120]
[343134989,1732377048982,-500.0,0.00055342,120]
[343134990,1732377048992,-519.01674405,0.00055342,120]
[343134991,1732377049003,-500.0,0.00055342,120]
[343134992,1732377049013,-729.37,0.00055342,120]
[343134993,1732377049023,-500.0,0.00055342,120]
[343134994,1732377049034,-500.0,0.00055342,120]
[343134995,1732377049044,-500.0,0.00055342,120]
[343134996,1732377049057,-599.32,0.00055342,120]
[343134997,1732377049067,-500.0,0.00055342,120]
[343134998,1732377049077,-500.0,0.00055342,120]
[343134999,1732377049087,-500.0,0.00055342,120]
[343135000,1732377049098,-328.86700768,0.00055342,120]
[343135001,1732377049108,-500.0,0.00055342,120]
[343135002,1732377049118,-2261.96,0.00055342,120]
[343135003,1732377049129,-708.61,0.00055342,120]
[343135004,1732377049139,-500.0,0.00055342,120]
[343135005,1732377049150,-500.0,0.00055342,120]
[343135006,1732377049160,-500.0,0.00055342,120]
[343135007,1732377049170,-500.0,0.00055342,120]
[343135008,1732377049180,-500.0,0.00055342,120]
[343135009,1732377049191,-500.0,0.00055342,120]
[343135010,1732377049201,-1471.71,0.00055342,120]
[343135011,1732377049211,-500.0,0.00055342,120]
[343135012,1732377049222,-500.0,0.00055342,2]
[343135013,1732377049235,-461.6000344,0.00055342,120]
[343135014,1732377049245,-500.0,0.00055342,120]
[343135015,1732377049255,-500.0,0.00055342,120]
[343135016,1732377049265,-1202.3,0.00055342,120]
[343135017,1732377049275,-1491.5,0.00055342,120]
[343135018,1732377049285,-768.5,0.00055342,120]
[343135019,1732377049295,-500.0,0.00055342,120]
[343135020,1732377049305,-500.0,0.00055342,120]
[343135021,1732377049315,-500.0,0.00055342,120]
[343135022,1732377049325,-500.0,0.00055342,120]
[343135023,1732377049335,-1032.47,0.00055342,120]
[343135024,1732377049345,-281.58856893,0.00055342,120]
[343135025,1732377049355,-571.78,0.00055342,120]
[343135026,1732377049365,-500.0,0.00055342,120]
[343135027,1732377049375,-150.0,0.00055357,120]
[343135028,1732377049385,-566.62808031,0.00055372,27]
[343135029,1732377049394,-150.0,0.00055376,14]
[343135030,1732377049405,-150.0,0.00055384,120]
[343135031,1732377049415,-1300.0,0.000554,20]
[343135032,1732377049425,-150.0,0.00055404,14]
[343135033,1732377049435,-150.0,0.0005541,120]
[343135034,1732377049446,-1899.48443116,0.0005542,2]
[343135035,1732377049456,-425.21601,0.0005542,75]
[343135036,1732377049467,-1000.0,0.00055427,120]
[343135037,1732377049480,-150.0,0.00055437,120]
[343135038,1732377049490,-150.0,0.00055464,120]
[343135039,1732377049500,-150.0,0.00055491,120]
[343135040,1732377049510,-1300.0,0.000555,20]
[343135041,1732377049520,-150.0,0.00055517,120]
[343135042,1732377049529,-150.0,0.00055541,14]
[343135043,1732377049540,-150.0,0.00055544,120]
[343135044,1732377049550,-150.0,0.00055571,120]
[343135045,1732377049560,-591.89,0.0005558,120]
[343135046,1732377049570,-591.89,0.0005558,120]
[343135047,1732377049579,-150.0,0.00055598,120]
[343135048,1732377049590,-1300.0,0.000556,20]
[343135049,1732377049600,-150.0,0.00055625,120]
[343135050,1732377049609,-150.0,0.00055651,120]
[343135051,1732377049619,-385.2,0.0005566,120]
[343135052,1732377049629,-150.0,0.00055678,14]
[343135053,1732377049640,-150.0,0.00055678,120]
[343135054,1732377049651,-1300.0,0.000557,20]
[343135055,1732377049661,-150.0,0.00055705,120]
[343135056,1732377049672,-150.0,0.00055732,120]
[343135057,1732377049682,-150.0,0.00055749,14]